{"text_format":"3","workbook":"xlsx","n_sheets":3,"sheets":["Lehrtätigkeitabrg.","Druckvorlage","Reisekosten DIN 5 (1)"],"not_rendered":{"images":1,"defined_names":7},"read":"whole","date_system":"1900"}

{"sheet":"Lehrtätigkeitabrg.","index":0,"n_rows":32,"n_cols":13,"rows_kept":32,"merged":[[0,0,0,6],[1,0,1,11],[4,0,4,2],[4,3,4,5],[4,7,5,11],[5,0,5,2],[5,3,5,5],[6,0,6,2],[6,3,6,5],[6,7,6,11],[7,0,7,2],[7,7,7,11],[8,7,8,11],[9,0,9,3],[23,0,23,3],[23,4,23,9],[24,4,24,9],[26,9,26,11],[27,9,27,11],[30,0,30,2],[30,3,30,7],[31,0,31,2],[31,3,31,7]]}
[]
["Abrechnung Lehrtätigkeit"]
[]
[]
["Vor-/Nachname, Funktion",{"$nulls":6},"Zahlungsart: Überweisung auf die beim \nHVSH hinterlegte Bankverbindung."]
["Straße"]
["PLZ Ort",{"$nulls":6},"Achtung: Neue Bankverbindung, gültig ab sofort:"]
["Kfz-Kennzeichen",{"$nulls":3},"(bei km-Geld-Abrechnungen)",null,"IBAN"]
[{"$nulls":7},"Nur bei Änderungen ausfüllen!"]
["Lehrtätigkeit und km-Geld"]
[]
[null,"Datum","Maßnahme","Ort\nbeim km-Geld auch: PLZ, Straße, Hausnummer","Uhrzeit\nvon","Uhrzeit\nbis","LE","Honorar","km mit \nprivatem PKW","Fahrkosten\nkm x 0,30 €","Summe EUR"]
[{"$nulls":9},{"$f":"(I13*0.3)","v":0},{"$f":"(H13+J13)","v":{"v":0,"d":"0.00 €"}}]
[{"$nulls":9},0,{"$f":"(H14+J14)","v":{"v":0,"d":"0.00 €"}}]
[{"$nulls":9},0,{"v":0,"d":"0.00 €"}]
[{"$nulls":9},0,{"v":0,"d":"0.00 €"}]
[{"$nulls":9},0,{"v":0,"d":"0.00 €"}]
[{"$nulls":9},0,{"v":0,"d":"0.00 €"}]
[{"$nulls":9},0,{"v":0,"d":"0.00 €"}]
[{"$nulls":9},0,{"v":0,"d":"0.00 €"}]
[{"$nulls":9},0,{"v":0,"d":"0.00 €"},null,{"$f":"SUM(K13:K21)","v":{"v":0,"d":"0.00 €"}}]
[]
[]
["Andere Kosten lt. Beleg (ggf. lt. beigefügter Aufstellung)"]
[{"$nulls":12},{"$f":"SUM(K24:K25)","v":0}]
[]
["Ich versichere, dass die vorgenannten Angaben richtig sind. Die Belege sind als Originale beigefügt.",{"$nulls":8},"Gesamt:",null,null,{"$f":"SUM(M20:M25)","v":{"v":0,"d":"0.00 €"}}]
["Die Versteuerung des Honorars liegt in der Verantwortung des Honorar-Empfängers."]
[]
[]
[]
["Ort, Datum",null,null,"Eigenhändige Unterschrift"]

{"sheet":"Druckvorlage","index":1,"n_rows":32,"n_cols":14,"rows_kept":32,"merged":[[0,0,0,6],[1,0,1,11],[4,0,4,2],[4,3,4,5],[4,7,5,11],[5,0,5,2],[5,3,5,5],[6,0,6,2],[6,3,6,5],[6,7,6,11],[7,0,7,2],[7,7,7,11],[8,7,8,11],[9,0,9,3],[23,0,23,3],[23,4,23,9],[24,4,24,9],[26,9,26,11],[27,9,27,11],[30,0,30,2],[30,3,30,7],[31,0,31,2],[31,3,31,7]]}
[]
["Abrechnung Lehrtätigkeit"]
[]
[]
["Vor-/Nachname, Funktion",{"$nulls":6},"Zahlungsart: Überweisung auf die beim \nHVSH hinterlegte Bankverbindung."]
["Straße"]
["PLZ Ort",{"$nulls":6},"Achtung: Neue Bankverbindung, gültig ab sofort:"]
["Kfz-Kennzeichen",{"$nulls":3},"(bei km-Geld-Abrechnungen)",null,"IBAN"]
[{"$nulls":7},"Nur bei Änderungen ausfüllen!"]
["Lehrtätigkeit und km-Geld"]
[]
[null,"Datum","Maßnahme","Ort\nbeim km-Geld auch: PLZ, Straße, Hausnummer","Uhrzeit\nvon","Uhrzeit\nbis","LE","Honorar","km mit \nprivatem PKW","Fahrkosten\nkm x 0,30 €","Summe EUR"]
{"$rows_empty":8}
[{"$nulls":13},"€"]
[]
[]
["Andere Kosten lt. Beleg (ggf. lt. beigefügter Aufstellung)"]
[{"$nulls":13},"€"]
[]
["Ich versichere, dass die vorgenannten Angaben richtig sind. Die Belege sind als Originale beigefügt.",{"$nulls":8},"Gesamt:",{"$nulls":3},"€"]
["Die Versteuerung des Honorars liegt in der Verantwortung des Honorar-Empfängers."]
[]
[]
[]
["Ort, Datum",null,null,"Eigenhändige Unterschrift"]

{"sheet":"Reisekosten DIN 5 (1)","index":2,"n_rows":30,"n_cols":12,"rows_kept":30,"hidden":true,"merged":[[2,2,2,4],[2,9,2,11],[12,0,12,2],[12,7,12,9],[13,0,13,3],[13,7,13,10],[18,0,18,2],[18,7,18,9],[22,0,22,2],[22,7,22,9],[28,0,28,4],[28,7,28,11]]}
["Reisekostenabrechnung ",{"$nulls":3},"gültig ab Januar 2014",null,null,"Reisekostenabrechnung ",{"$nulls":3},"gültig ab Januar 2014"]
[]
["Firma",null,"(Stempel)",{"$nulls":4},"Firma",null,"(Stempel)"]
["Name des Reisenden",{"$nulls":6},"Name des Reisenden"]
["Ziel der Reise",{"$nulls":6},"Ziel der Reise"]
["Anlass der Reise",{"$nulls":6},"Anlass der Reise"]
[]
["Reisedauer ","von:",null,null,"Uhr",null,null,"Reisedauer ","von:",null,null,"Uhr"]
[null,null,"Datum",null,"Uhrzeit",{"$nulls":4},"Datum",null,"Uhrzeit"]
[null,"bis:",null,null,"Uhr",{"$nulls":3},"bis:",null,null,"Uhr"]
[null,null,"Datum",null,"Uhrzeit",{"$nulls":4},"Datum",null,"Uhrzeit"]
[]
["Übernachtung inkl. Frühstück\n(Buchung durch den Arbeitgeber)",{"$nulls":3},"EUR",null,null,"Übernachtung inkl. Frühstück\n(Buchung durch den Arbeitgeber)",{"$nulls":3},"EUR"]
["steuerfreier Verpflegungsmehraufwand",{"$nulls":6},"steuerfreier Verpflegungsmehraufwand"]
["mehr als 8 bis\nunter 24 Stunden",null," x  12,00 €",null,"EUR",null,null,"mehr als 8 bis\nunter 24 Stunden",null," x  12,00 €",null,"EUR"]
["An-/Abreisetag bei \nmehrtägiger Reise",null," x  12,00 €",null,"EUR",null,null,"An-/Abreisetag bei \nmehrtägiger Reise",null," x  12,00 €",null,"EUR"]
["24 Stunden bei\nmehrtägiger Reise",null," x  24,00 €",null,"EUR",null,null,"24 Stunden bei\nmehrtägiger Reise",null," x  24,00 €",null,"EUR"]
[]
["abzüglich Kürzung Verpflegunspauschale",{"$nulls":6},"abzüglich Kürzung Verpflegunspauschale"]
["Anzahl Frühstück(e):",null," x 4,80 €","-","EUR",null,null,"Anzahl Frühstück(e):",null," x 4,80 €","-","EUR"]
["Anzahl \nMittag/Abendessen:",null," x 9,60 €","-","EUR",null,null,"Anzahl \nMittag/Abendessen:",null," x 9,60 €","-","EUR"]
[]
["Fahrkosten mit eigenem PKW und Auslagen",{"$nulls":3},"EUR",null,null,"Fahrkosten mit eigenem PKW und Auslagen",{"$nulls":3},"EUR"]
[null,null,"Summe:",null,"EUR",{"$nulls":4},"Summe:",null,"EUR"]
[]
["Ort, Datum",{"$nulls":6},"Ort, Datum"]
[]
["Unterschrift Reisender",{"$nulls":6},"Unterschrift Reisender"]
["Für Sie erstellt: Steuerbüro Birte Ponczyk -  Neumünster",{"$nulls":6},"Für Sie erstellt: Steuerbüro Birte Ponczyk - Neumünster"]
["Reisekosten DIN 5 (1)",{"$nulls":6},"Reisekosten DIN 5 (1)"]